fUSD/lending_fUSD_20260625
["ID","MTS","AMOUNT","RATE_DAILY","PERIOD"]
[426335111,1782321038000,-3361600.2874492,0.00015,2]
[426335104,1782321038000,-428.46034091,0.00015,2]
[426335090,1782321038000,-500.0,0.00011836,2]
[426335084,1782321038000,-500.0,0.00011836,2]
[426335093,1782321038000,-500.0,0.00011836,2]
[426335091,1782321038000,-500.0,0.00011836,2]
[426335092,1782321038000,-500.0,0.00011836,2]
[426335089,1782321038000,-357.30751254,0.00011836,2]
[426335086,1782321038000,-500.0,0.00011836,2]
[426335081,1782321038000,-307.46,0.00011639,2]
[426335085,1782321038000,-500.0,0.00011836,2]
[426335083,1782321038000,-500.0,0.00011836,2]
[426335087,1782321038000,-429.94784948,0.00011836,2]
[426335088,1782321038000,-142.69248746,0.00011836,2]
[426335080,1782321038000,-307.46,0.00011245,2]
[426335082,1782321038000,-339.53966306,0.00011836,2]
[426335110,1782321038000,-1077219.61121672,0.00015,2]
[426335094,1782321038000,-500.0,0.00011836,2]
[426335112,1782321038000,-487.21,0.00015,2]
[426335106,1782321038000,-10626.16363296,0.00015,2]
[426335114,1782321038000,-155.479638,0.00015,2]
[426335113,1782321038000,-151.0,0.00015,2]
[426335142,1782321038000,-500.0,0.00016438,2]
[426335139,1782321038000,-500.0,0.00016438,2]
[426335140,1782321038000,-500.0,0.00016438,2]
[426335143,1782321038000,-500.0,0.00016438,2]
[426335137,1782321038000,-428.6,0.00016438,2]
[426335141,1782321038000,-500.0,0.00016438,2]
[426335145,1782321038000,-500.0,0.00016438,2]
[426335144,1782321038000,-500.0,0.00016438,2]
[426335133,1782321038000,-2026.25297461,0.000164,2]
[426335147,1782321038000,-584.74145564,0.00016438,2]
[426335134,1782321038000,-400.0,0.000164,2]
[426335129,1782321038000,-1255.39,0.00016059,2]
[426335130,1782321038000,-200.0,0.00016248,2]
[426335131,1782321038000,-179.07,0.0001632,2]
[426335135,1782321038000,-167.1560792,0.000164,2]
[426335126,1782321038000,-155.19595221,0.0001568,2]
[426335120,1782321038000,-10000.0,0.0001502,2]
[426335115,1782321038000,-270.343244,0.00015,2]
[426335119,1782321038000,-1000.0,0.00015,2]
[426335118,1782321038000,-151.0,0.00015,2]
[426335117,1782321038000,-151.0,0.00015,2]
[426335121,1782321038000,-900.0,0.00015068,2]
[426335116,1782321038000,-151.0,0.00015,2]
[426335125,1782321038000,-500.0,0.00015419,2]
[426335122,1782321038000,-500.0,0.00015068,2]
[426335123,1782321038000,-3698.76380779,0.00015391,2]
[426335132,1782321038000,-1318.66097386,0.00016326,2]
[426335127,1782321038000,-1000.0,0.00015913,5]
[426335128,1782321038000,-211.14775443,0.00016,2]
[426335124,1782321038000,-2000.0,0.00015419,2]
[426335193,1782321039000,-572.1943586,0.000179,2]
[426335190,1782321039000,-383.0,0.00017862,2]
[426335189,1782321039000,-1361.0,0.00017862,2]
[426335195,1782321039000,-1048.92270125,0.00018,2]
[426335183,1782321039000,-179.07,0.00017804,2]
[426335184,1782321039000,-150.0,0.00017862,2]
[426335181,1782321039000,-2026.25297461,0.000176,2]
[426335182,1782321039000,-2026.25297461,0.000178,2]
[426335179,1782321039000,-935.0,0.00017554,2]
[426335180,1782321039000,-6136.779,0.00017554,2]
[426335186,1782321039000,-150.0,0.00017862,2]
[426335191,1782321039000,-611.68625003,0.000179,2]
[426335197,1782321039000,-287.89,0.00018,2]
[426335196,1782321039000,-233.77,0.00018,2]
[426335192,1782321039000,-706.23077698,0.000179,2]
[426335194,1782321039000,-2026.25297461,0.00018,2]
[426335187,1782321039000,-3562.0,0.00017862,2]
[426335198,1782321039000,-661.0,0.00018175,5]
[426335204,1782321039000,-166.52,0.00018359,2]
[426335200,1782321039000,-1048.92270125,0.000182,2]
[426335203,1782321039000,-179.296954,0.00018278,2]
[426335201,1782321039000,-2000.0,0.0001822,2]
[426335205,1782321039000,-545.80031875,0.00018372,2]
[426335177,1782321039000,-1318.66097386,0.0001747,2]
[426335188,1782321039000,-1277.0,0.00017862,2]
[426335185,1782321039000,-150.0,0.00017862,2]
[426335158,1782321039000,-2026.25297461,0.000168,2]
[426335178,1782321039000,-1229.0,0.00017554,2]
[426335202,1782321039000,-500.0,0.0001822,2]
[426335151,1782321039000,-900.0,0.00016438,2]
[426335150,1782321039000,-151.0,0.00016438,2]
[426335153,1782321039000,-730.35,0.00016573,2]
[426335149,1782321039000,-500.0,0.00016438,2]
[426335154,1782321039000,-2026.25297461,0.000166,2]
[426335161,1782321039000,-200.0,0.00016886,2]
[426335156,1782321039000,-400.0,0.000166,2]
[426335159,1782321039000,-400.0,0.000168,2]
[426335157,1782321039000,-171.43,0.00016712,2]
[426335160,1782321039000,-164.25495325,0.00016874,2]
[426335174,1782321039000,-487.21,0.000173,2]
[426335162,1782321039000,-2026.25297461,0.000169,2]
[426335167,1782321039000,-190.504,0.0001702,2]
[426335165,1782321039000,-166.52,0.00016959,2]
[426335166,1782321039000,-1567.245,0.0001702,2]
[426335168,1782321039000,-2026.25297461,0.000171,2]
[426335163,1782321039000,-400.0,0.000169,2]
[426335169,1782321039000,-400.0,0.000171,2]
[426335170,1782321039000,-644.0,0.000172,2]
[426335171,1782321039000,-316.0,0.000172,2]
[426335172,1782321039000,-202.0,0.000172,2]
[426335173,1782321039000,-2026.25297461,0.000173,2]
[426335175,1782321039000,-2026.25297461,0.000174,2]
[426335164,1782321039000,-1258.0,0.0001694,5]
[426335206,1782321039000,-1048.92270125,0.000184,2]
[426335199,1782321039000,-545.80031875,0.00018189,2]
[426335212,1782321039000,-1318.66097386,0.00018613,2]
[426335236,1782321039000,-48588.6576909,0.0001995,15]
[426335235,1782321039000,-545.80031875,0.00019833,2]
[426335237,1782321039000,-151.0,0.0001995,2]
[426335234,1782321039000,-166.52,0.00019759,2]
[426335242,1782321039000,-402.0,0.0002,2]
[426335241,1782321039000,-1095.0,0.0002,2]
[426335244,1782321039000,-164.01584352,0.0002,2]
[426335245,1782321039000,-300.00000101,0.0002,2]
[426335246,1782321039000,-281.0,0.0002,2]
[426335248,1782321039000,-1134.0,0.0002,2]
[426335247,1782321039000,-313.0,0.0002,2]
[426335239,1782321039000,-202.0,0.0002,2]
[426335249,1782321039000,-1340.0,0.0002,2]
[426335251,1782321039000,-198.0,0.0002,2]
[426335252,1782321039000,-2000.0,0.0002,7]
[426335254,1782321039000,-545.80031875,0.00020198,2]
[426335253,1782321039000,-545.80031875,0.00020016,2]
[426335258,1782321039000,-151.0,0.00020213,2]
[426335255,1782321039000,-151.0,0.00020213,2]
[426335257,1782321039000,-151.0,0.00020213,2]
[426335261,1782321039000,-1094.26907815,0.00020213,2]
[426335259,1782321039000,-1026.19040277,0.00020213,2]
[426335260,1782321039000,-1016.80804785,0.00020213,2]
[426335207,1782321039000,-428.6,0.0001841,2]
[426335250,1782321039000,-8794.18,0.0002,2]
[426335240,1782321039000,-243.0,0.0002,2]
[426335243,1782321039000,-150.0,0.0002,2]
[426335230,1782321039000,-318.36025517,0.0001951,2]
[426335215,1782321039000,-545.80031875,0.00018737,2]
[426335218,1782321039000,-545.80031875,0.0001892,2]
[426335211,1782321039000,-545.80031875,0.00018555,2]
[426335209,1782321039000,-1048.92270125,0.000185,2]
[426335233,1782321039000,-1318.66097386,0.00019757,2]
[426335262,1782321039000,-1008.89586731,0.00020213,2]
[426335208,1782321039000,-155.19595221,0.00018464,2]
[426335213,1782321039000,-1048.92270125,0.000187,2]
[426335210,1782321039000,-1534.0902282,0.00018554,2]
[426335217,1782321039000,-487.21,0.000189,2]
[426335216,1782321039000,-1048.92270125,0.000189,2]
[426335228,1782321039000,-545.80031875,0.00019468,2]
[426335220,1782321039000,-1048.92270125,0.000191,2]
[426335214,1782321039000,-150.0,0.000187,7]
[426335219,1782321039000,-1151.77654849,0.00019,2]
[426335238,1782321039000,-151.0,0.0001995,2]
[426335229,1782321039000,-1048.92270125,0.000195,2]
[426335232,1782321039000,-1048.92270125,0.000197,2]
[426335226,1782321039000,-200.0,0.0001933,2]
[426335227,1782321039000,-291.0,0.00019355,7]
[426335231,1782321039000,-545.80031875,0.0001965,2]
[426335224,1782321039000,-545.80031875,0.00019285,2]
[426335222,1782321039000,-171.72,0.0001917,2]
[426335223,1782321039000,-151.0,0.00019178,2]
[426335221,1782321039000,-545.80031875,0.00019103,2]
[426335225,1782321039000,-1048.92270125,0.000193,2]
[426335280,1782321040000,-1075.30778228,0.00020626,2]
[426335271,1782321040000,-545.80031875,0.00020381,2]
[426335281,1782321040000,-1004.94669862,0.00020626,2]
[426335287,1782321040000,-151.0,0.00020644,2]
[426335278,1782321040000,-1019.19096088,0.00020626,2]
[426335267,1782321040000,-487.21,0.000203,2]
[426335269,1782321040000,-428.6,0.00020381,2]
[426335272,1782321040000,-1229.0,0.00020554,2]
[426335274,1782321040000,-6084.0,0.00020554,2]
[426335266,1782321040000,-151.0,0.000203,2]
[426335275,1782321040000,-545.80031875,0.00020564,2]
[426335265,1782321040000,-151.0,0.000203,2]
[426335273,1782321040000,-935.0,0.00020554,2]
[426335264,1782321040000,-151.0,0.000203,2]
[426335263,1782321040000,-3929.1399345,0.00020238,2]
[426335279,1782321040000,-1063.56799316,0.00020626,2]
[426335268,1782321040000,-180.0,0.00020373,2]
[426335277,1782321040000,-1084.61112184,0.00020626,2]
[426335276,1782321040000,-1090.56936991,0.00020626,2]
[426335283,1782321040000,-200.0,0.00020644,2]
[426335307,1782321040000,-161.87573844,0.00017001,2]
[426335308,1782321040000,-466.80999999,0.00017001,2]
[426335306,1782321040000,-96.574532,0.00015,2]
[426335304,1782321040000,-151.425468,0.00015,2]
[426335303,1782321040000,-152.0,0.00015,2]
[426335301,1782321040000,-2807.82766985,0.00017001,2]
[426335302,1782321040000,-2249.95789963,0.00017001,2]
[426335296,1782321040000,-157.77543723,0.00020644,2]
[426335297,1782321040000,-151.0,0.00020644,2]
[426335282,1782321040000,-1070.49671773,0.00020626,2]
[426335294,1782321040000,-20.53382984,0.00020644,2]
[426335295,1782321040000,-151.0,0.00020644,2]
[426335299,1782321040000,-138.48148985,0.00020644,2]
[426335289,1782321040000,-288.95425808,0.00020644,2]
[426335288,1782321040000,-216.3522393,0.00020644,2]
[426335284,1782321040000,-285.67343841,0.00020644,2]
[426335286,1782321040000,-1930.34951152,0.00020644,2]
[426335285,1782321040000,-151.0,0.00020644,2]
[426335298,1782321040000,-578.20924308,0.00020644,2]
[426335383,1782321045000,-303.425468,0.00017001,2]
[426335380,1782321045000,-349.14756223,0.00017001,2]
[426335377,1782321045000,-151.0,0.00014343,2]
[426335396,1782321046000,-285.7914057,0.00017001,2]
[426335483,1782321046000,-1404.40726234,0.00017001,2]
[426335480,1782321046000,-375.24044102,0.00017001,2]
[426335487,1782321046000,-155.0,0.0002,2]
[426335495,1782321046000,-174.61919141,0.00020644,2]
[426335491,1782321046000,-12.51851015,0.00020644,2]
[426335503,1782321046000,-500.0,0.00020644,2]
[426335499,1782321046000,-151.0,0.00020644,2]
[426335507,1782321046000,-151.0,0.00020644,2]
[426335512,1782321046000,-157.54821893,0.00020644,2]
[426335516,1782321046000,-151.0,0.00020644,2]
[426335519,1782321046000,-5142.90681722,0.00020644,2]
[426335562,1782321046000,-217.151,0.00018427,2]
[426335567,1782321046000,-1489.58991837,0.00020644,2]
[426335577,1782321046000,-364.30051678,0.00020644,2]
[426335565,1782321046000,-1933.25882352,0.00020644,2]
[426335569,1782321046000,-8.53008163,0.00020644,2]
[426335560,1782321046000,-634.0,0.00018175,5]
[426335575,1782321046000,-500.0,0.00020644,2]
[426335573,1782321046000,-509.45727478,0.00020644,2]
[426337095,1782321241000,-302.69,0.00011244,2]
[426337128,1782321269000,-208.31,0.00011441,2]
[426337200,1782321303000,164.0,0.00020867,120]
[426337208,1782321304000,164.0,0.00021911,120]
[426337215,1782321307000,164.0,0.00024156,120]
[426337214,1782321307000,164.0,0.00023006,120]
[426337216,1782321308000,164.0,0.00025364,120]
[426337217,1782321310000,164.0,0.00026632,120]
[426337218,1782321311000,164.0,0.00027964,120]
[426337337,1782321604000,170.0,0.00020978,120]
[426337384,1782322106000,-200.0,0.00010405,7]
[426337385,1782322106000,-176.06,0.00010405,2]
[426337386,1782322106000,-150.0,0.00010513,2]
[426337387,1782322106000,-150.0,0.00010617,2]
[426337388,1782322106000,-150.0,0.00010721,2]
[426337389,1782322106000,-153.54,0.00010799,2]
[426337383,1782322106000,-200.0,0.00010405,2]
[426337391,1782322106000,-422.44,0.00010857,2]
[426337392,1782322106000,-200.0,0.00010872,2]
[426337393,1782322106000,-198.879535,0.00010876,2]
[426337394,1782322106000,-150.0,0.00010929,2]
[426337396,1782322106000,-165.26572227,0.00010943,2]
[426337395,1782322106000,-228.55195777,0.00010931,2]
[426337390,1782322106000,-150.0,0.00010825,2]
[426337407,1782322107000,-511.70444409,0.00011047,2]
[426337406,1782322107000,-267.22139395,0.00011047,2]
[426337405,1782322107000,-500.0,0.00011047,2]
[426337404,1782322107000,-150.0,0.00011046,2]
[426337403,1782322107000,-889.59,0.00011043,2]
[426337401,1782322107000,-81.43640621,0.00011034,2]
[426337399,1782322107000,-150.0,0.00010959,2]
[426337398,1782322107000,-166.66,0.00010959,2]
[426337400,1782322107000,-195.55,0.0001097,2]
[426337397,1782322107000,-150.0,0.00010945,2]
[426337408,1782322107000,-500.0,0.00011047,2]
[426337402,1782322107000,-68.56359379,0.00011034,2]
[426337409,1782322107000,-500.0,0.00011047,2]
[426337416,1782322107000,-162.88613309,0.00011047,2]
[426337411,1782322107000,-448.69581058,0.00011047,2]
[426337424,1782322107000,-101.26975434,0.00011047,2]
[426337423,1782322107000,-500.0,0.00011047,2]
[426337422,1782322107000,-500.0,0.00011047,2]
[426337410,1782322107000,-51.30418942,0.00011047,2]
[426337420,1782322107000,-500.0,0.00011047,2]
[426337418,1782322107000,-500.0,0.00011047,2]
[426337421,1782322107000,-500.0,0.00011047,2]
[426337419,1782322107000,-500.0,0.00011047,2]
[426337415,1782322107000,-500.0,0.00011047,2]
[426337414,1782322107000,-500.0,0.00011047,2]
[426337413,1782322107000,-500.0,0.00011047,2]
[426337412,1782322107000,-500.0,0.00011047,2]
[426337417,1782322107000,-337.11386691,0.00011047,2]
[426337453,1782322232000,-29.64855188,0.00010944,2]
[426337455,1782322232000,-500.0,0.00010944,2]
[426337451,1782322232000,-470.35144812,0.00010944,2]
[426337457,1782322232000,-500.0,0.00010944,2]
[426337454,1782322232000,-500.0,0.00010944,2]
[426337461,1782322232000,-40.55119214,0.00010944,2]
[426337460,1782322232000,-459.44880786,0.00010944,2]
[426337459,1782322232000,-500.0,0.00010944,2]
[426337462,1782322232000,-548.4184817,0.00010944,2]
[426337463,1782322232000,-500.0,0.00010944,2]
[426337458,1782322232000,-500.0,0.00010944,2]
[426337486,1782322233000,-460.00324195,0.00011992,2]
[426337485,1782322233000,-202.66326109,0.00011992,2]
[426337484,1782322233000,-11.40031189,0.00011943,2]
[426337479,1782322233000,-302.69,0.00011836,2]
[426337481,1782322233000,-166.66,0.00011864,2]
[426337483,1782322233000,-411.03968811,0.00011943,2]
[426337480,1782322233000,-216.42324807,0.00011847,2]
[426337482,1782322233000,-166.5,0.00011906,2]
[426337478,1782322233000,-422.44,0.00011671,2]
[426337477,1782322233000,-302.69,0.00011638,2]
[426337476,1782322233000,-166.66,0.00011638,2]
[426337475,1782322233000,-1045.79085111,0.00011475,2]
[426337489,1782322233000,-302.69,0.00012033,2]
[426337471,1782322233000,-119.24621271,0.00011285,2]
[426337472,1782322233000,-422.44,0.000114,2]
[426337470,1782322233000,-47.25378729,0.00011285,2]
[426337469,1782322233000,-166.66,0.00011185,2]
[426337467,1782322233000,-422.44,0.00011128,2]
[426337468,1782322233000,-150.0,0.00011138,2]
[426337466,1782322233000,-500.0,0.00010944,2]
[426337464,1782322233000,-500.0,0.00010944,2]
[426337465,1782322233000,-500.0,0.00010944,2]
[426337474,1782322233000,-94.38,0.00011441,2]
[426337488,1782322233000,-249.58178218,0.00011992,2]
[426337473,1782322233000,-166.66,0.00011412,2]
[426337490,1782322233000,-1497.91,0.00012087,2]
[426337487,1782322233000,-39.99675805,0.00011992,2]
[426337526,1782322233000,-1850.0,0.00012594,2]
[426337524,1782322233000,-932.0893345,0.00012594,2]
[426337536,1782322233000,-485.26362913,0.00012594,2]
[426337532,1782322233000,-380.68182096,0.00012594,2]
[426337534,1782322233000,-501.55199785,0.00012594,2]
[426337521,1782322233000,-491980.00018415,0.00012594,2]
[426337519,1782322233000,-407.79083336,0.00012593,2]
[426337517,1782322233000,-1000.0,0.00012534,2]
[426337529,1782322233000,-7891.2771,0.00012594,2]
[426337515,1782322233000,-241.19825472,0.00012534,7]
[426337504,1782322233000,-250.0,0.00012241,2]
[426337507,1782322233000,-195.55,0.00012341,2]
[426337513,1782322233000,-166.5,0.00012527,2]
[426337496,1782322233000,-9999.99,0.00012087,2]
[426337502,1782322233000,-302.69,0.0001223,2]
[426337494,1782322233000,-299.99,0.00012087,2]
[426337495,1782322233000,-9559.05,0.00012087,2]
[426337491,1782322233000,-999.99,0.00012087,2]
[426337493,1782322233000,-150.99,0.00012087,2]
[426337500,1782322233000,-250.0,0.00012152,2]
[426337498,1782322233000,-166.66,0.00012091,2]
[426337508,1782322233000,-302.69,0.00012428,2]
[426337511,1782322233000,-150.0,0.00012428,2]
[426337492,1782322233000,-5310.44,0.00012087,2]
[426337638,1782322242000,-1456.43138381,0.00012594,2]
[426337621,1782322242000,-4932.1520001,0.00012594,2]
[426337622,1782322242000,-8865.13999,0.00012594,2]
[426337620,1782322242000,-5609.03526058,0.00012594,2]
[426337619,1782322242000,-500.0,0.00012593,2]
[426337633,1782322242000,-2700.45874135,0.00012594,2]
[426337640,1782322242000,-3840.51709679,0.00012594,2]
[426337642,1782322242000,-1006.62955637,0.00012594,2]
[426337636,1782322242000,-420.55575604,0.00012594,2]
[426337643,1782322242000,-2763.12928349,0.00012594,2]
[426337651,1782322242000,-3720.49673213,0.00012594,2]
[426337649,1782322242000,-13538.76187189,0.00012594,2]
[426337648,1782322242000,-372.73608226,0.00012594,2]
[426337647,1782322242000,-481.00102239,0.00012594,2]
[426337645,1782322242000,-18804.29848126,0.00012594,2]
[426337646,1782322242000,-257.31499997,0.00012594,2]
[426337650,1782322242000,-20389.7179902,0.00012594,2]
[426337652,1782322242000,-327186.71786394,0.00012594,2]
[426337653,1782322242000,-5604.19535025,0.00012594,2]
[426337661,1782322242000,-787.4751474,0.00012594,2]
[426337644,1782322242000,-5192.78989098,0.00012594,2]
[426337727,1782322243000,-1511510.78701276,0.00012694,2]
[426337737,1782322243000,-503.39907095,0.00013499,2]
[426337735,1782322243000,-500.0,0.00013499,2]
[426337738,1782322243000,-150.0,0.00013521,2]
[426337736,1782322243000,-500.0,0.00013499,2]
[426337732,1782322243000,-166.5,0.00013148,2]
[426337726,1782322243000,-381.46290574,0.00012693,2]
[426337728,1782322243000,-387255.26198724,0.00012694,2]
[426337734,1782322243000,-500.0,0.00013499,2]
[426337729,1782322243000,-823.93590648,0.00012793,2]
[426337725,1782322243000,-1000.0,0.00012693,2]
[426337723,1782322243000,-367022.67513221,0.00012594,2]
[426337724,1782322243000,-954.04102064,0.00012693,2]
[426337733,1782322243000,-500.0,0.00013499,2]
[426337739,1782322243000,-954.04102056,0.00013605,2]
[426337743,1782322243000,-500.0,0.00013698,2]
[426337730,1782322243000,-160.02,0.00012907,2]
[426337731,1782322243000,-183.42,0.00012912,2]
[426337754,1782322243000,-151.0,0.00014986,2]
[426337752,1782322243000,-954.04102056,0.00014517,2]
[426337745,1782322243000,-200.0,0.00013699,2]
[426337747,1782322243000,-170.54414871,0.00013931,2]
[426337744,1782322243000,-275.07249415,0.00013698,2]
[426337748,1782322243000,-450.06870672,0.00013931,2]
[426337753,1782322243000,-584.56,0.000146,2]
[426337750,1782322243000,-190.51562,0.00014,2]
[426337751,1782322243000,-9999.99,0.00014504,2]
[426337746,1782322243000,-195.55,0.00013712,2]
[426337741,1782322243000,-456.55695929,0.00013698,2]
[426337742,1782322243000,-165.75080484,0.00013698,2]
[426337749,1782322243000,-250.0,0.00014,2]
[426337740,1782322243000,-151.0,0.00013687,2]
[426337799,1782322244000,-353.1994453,0.00018,2]
[426337794,1782322244000,-3929.1399345,0.000179,2]
[426337795,1782322244000,-793.97454701,0.00017931,2]
[426337792,1782322244000,-10182.02673358,0.000179,2]
[426337804,1782322244000,-2000.0,0.00018021,2]
[426337791,1782322244000,-501.0,0.00017808,2]
[426337805,1782322244000,-10182.02673358,0.000181,2]
[426337790,1782322244000,-10182.02673358,0.000177,2]
[426337789,1782322244000,-10182.02673358,0.000175,2]
[426337786,1782322244000,-10182.02673358,0.000174,2]
[426337802,1782322244000,-350.0,0.00018,2]
[426337803,1782322244000,-500.0,0.00018021,2]
[426337798,1782322244000,-1607.0472,0.00017931,2]
[426337811,1782322244000,-10182.02673358,0.000184,2]
[426337797,1782322244000,-1187.73843783,0.00017931,2]
[426337800,1782322244000,-314.88,0.00018,2]
[426337806,1782322244000,-500.0,0.0001811,2]
[426337810,1782322244000,-179.296954,0.00018346,2]
[426337809,1782322244000,-10182.02673358,0.000183,2]
[426337812,1782322244000,-353.1994453,0.000184,2]
[426337780,1782322244000,-10182.02673358,0.00017,2]
[426337813,1782322244000,-428.6,0.0001841,2]
[426337808,1782322244000,-353.1994453,0.000182,2]
[426337807,1782322244000,-954.04102056,0.00018164,2]
[426337814,1782322244000,-1361.0,0.00018427,2]
[426337815,1782322244000,-1277.0,0.00018427,2]
[426337816,1782322244000,-383.0,0.00018427,2]
[426337818,1782322244000,-353.1994453,0.000185,2]
[426337801,1782322244000,-340.56,0.00018,2]
[426337781,1782322244000,-400.0,0.00017,2]
[426337778,1782322244000,-10182.02673358,0.000169,2]
[426337785,1782322244000,-954.04102056,0.00017252,2]
[426337755,1782322244000,-900.0,0.00015068,2]
[426337764,1782322244000,-199.5,0.00015945,2]
[426337763,1782322244000,-160.89,0.00015851,2]
[426337762,1782322244000,-889.59,0.00015461,2]
[426337758,1782322244000,-500.0,0.0001522,2]
[426337756,1782322244000,-500.0,0.00015068,2]
[426337759,1782322244000,-2000.0,0.0001522,2]
[426337760,1782322244000,-500.0,0.00015367,2]
[426337757,1782322244000,-195.55,0.00015084,2]
[426337761,1782322244000,-954.04102056,0.00015429,2]
[426337776,1782322244000,-171.43,0.00016712,2]
[426337766,1782322244000,-211.14775443,0.00016,2]
[426337765,1782322244000,-300.0,0.00016,2]
[426337827,1782322244000,-25323.75,0.0001872,2]
[426337777,1782322244000,-407.79083335,0.00016747,2]
[426337768,1782322244000,-954.04102056,0.00016341,2]
[426337767,1782322244000,-267.44,0.00016059,2]
[426337769,1782322244000,-428.6,0.00016438,2]
[426337772,1782322244000,-164.25495325,0.00016677,2]
[426337771,1782322244000,-195.55,0.00016455,2]
[426337774,1782322244000,-400.0,0.000167,2]
[426337773,1782322244000,-10182.02673358,0.000167,2]
[426337775,1782322244000,-167.1560792,0.000167,2]
[426337779,1782322244000,-400.0,0.000169,2]
[426337782,1782322244000,-10182.02673358,0.000172,2]
[426337783,1782322244000,-400.0,0.000172,2]
[426337784,1782322244000,-584.56,0.000172,2]
[426337787,1782322244000,-400.0,0.000174,2]
[426337770,1782322244000,-900.0,0.00016438,2]
[426337817,1782322244000,-1229.0,0.00018427,2]
[426337867,1782322244000,-151.0,0.00019478,2]
[426337819,1782322244000,-644.0,0.000185,2]
[426337883,1782322244000,-151.0,0.00019966,2]
[426337884,1782322244000,-578.20924308,0.00019966,2]
[426337873,1782322244000,-151.0,0.00019966,2]
[426337872,1782322244000,-1784.89,0.00019836,2]
[426337876,1782322244000,-308.46139642,0.00019966,2]
[426337875,1782322244000,-200.0,0.00019966,2]
[426337879,1782322244000,-151.0,0.00019966,2]
[426337874,1782322244000,-151.0,0.00019966,2]
[426337880,1782322244000,-2675.75646867,0.00019966,2]
[426337882,1782322244000,-151.0,0.00019966,2]
[426337878,1782322244000,-323.02945902,0.00019966,2]
[426337881,1782322244000,-216.3522393,0.00019966,2]
[426337891,1782322244000,-151.0,0.00019966,2]
[426337869,1782322244000,-151.0,0.00019478,2]
[426337898,1782322244000,-1500.0,0.00019966,2]
[426337887,1782322244000,-216.35223928,0.00019966,2]
[426337894,1782322244000,-646.65982734,0.00019966,2]
[426337896,1782322244000,-174.61919141,0.00019966,2]
[426337893,1782322244000,-152.0,0.00019966,2]
[426337897,1782322244000,-500.0,0.00019966,2]
[426337889,1782322244000,-500.0,0.00019966,2]
[426337888,1782322244000,-151.0,0.00019966,2]
[426337886,1782322244000,-151.0,0.00019966,2]
[426337892,1782322244000,-8565.75555911,0.00019966,2]
[426337890,1782322244000,-151.0,0.00019966,2]
[426337895,1782322244000,-151.0,0.00019966,2]
[426337899,1782322244000,-151.0,0.00019966,2]
[426337830,1782322244000,-826.89,0.0001872,2]
[426337885,1782322244000,-151.0,0.00019966,2]
[426337870,1782322244000,-151.0,0.00019478,2]
[426337877,1782322244000,-157.83075356,0.00019966,2]
[426337868,1782322244000,-151.0,0.00019478,2]
[426337820,1782322244000,-316.0,0.000185,2]
[426337863,1782322244000,-151.0,0.00019478,2]
[426337833,1782322244000,-447.3329561,0.00018797,2]
[426337822,1782322244000,-310.0,0.000185,2]
[426337836,1782322244000,-381.46290573,0.00018797,2]
[426337823,1782322244000,-353.1994453,0.000187,2]
[426337838,1782322244000,-1592.0,0.00018822,5]
[426337825,1782322244000,-150.0,0.000187,7]
[426337844,1782322244000,-584.56,0.000189,2]
[426337842,1782322244000,-823.93590648,0.00018847,2]
[426337846,1782322244000,-1567.245,0.000189,2]
[426337858,1782322244000,-151.0,0.00019478,2]
[426337850,1782322244000,-16676.61358803,0.00019,2]